[Event "FTX Crypto Cup MCCT 2022"]
[Site "Miami"]
[Date "2022.08.11"]
[Round "4.4"]
[White "Aronian, Levon"]
[Black "Praggnanandhaa R"]
[Result "0-1"]
[ECO "A22"]
[WhiteElo "2775"]
[BlackElo "2648"]
[Annotator "TA"]
[PlyCount "88"]
[EventDate "2022.08.10"]
[EventType "tourn"]
[EventCountry "USA"]
[SourceTitle "playchess.com"]
[Source "ChessBase"]
[SourceQuality "1"]
[TimeControl "900+10"]

{[%evp 9,88,65,73,84,80,74,85,82,89,85,79,89,89,91,86,67,91,66,61,47,61,22,41,0,0,0,0,0,0,0,0,0,0,0,0,0,0,-112,-99,-120,-103,-127,-140,-133,0,0,0,-10,53,52,119,122,121,116,117,125,213,194,213,199,324,321,502,481,477,341,485,181,165,171,143,0,0,0,0,-238,-223,-697,-692,-689,-682]} 1. c4 {[%emt 0:00:00]} e5 {[%emt 0:00:00]} 2. Nc3 {[%emt 0:00:02]} Nf6 {[%emt 0:00:01]} 3. Nf3 {[%emt 0:00:01]} e4 {[%emt 0:00:01]} 4. Ng5 {[%emt 0:00:01]} c6 {[%emt 0:00:01]} 5. Ngxe4 {[%emt 0:00:00]} Nxe4 {[%emt 0:00:01]} 6. Nxe4 {[%emt 0:00:00] A22: English Opening: 1...e5 2 Nc3 Nf6.} d5 {[%emt 0:00:01]} 7. cxd5 {[%emt 0:00:01]} cxd5 {[%emt 0:00:00]} 8. Ng3 {[%emt 0:00:00][%cal Be4g3,Bg3e2,Be2c3][%mdl 32] White is better.} (8. Qa4+ $2 Bd7 9. Qd4 dxe4 10. Qxe4+ Be7 $19) 8... h5 {[%emt 0:00:01]} 9. e3 {[%emt 0:00:02]} h4 {[%emt 0:00:01]} 10. Ne2 {[%emt 0:00:00]} Nc6 {[%emt 0:00:00]} 11. d4 $1 {[%emt 0:00:02]} Qf6 {[%emt 0:00:01] [#]} 12. Bd2 $146 {[%emt 0:00:01]} ({Predecessor:} 12. Nc3 Bd6 13. a3 Qg6 14. h3 O-O 15. Qf3 Na5 16. Qxd5 b6 17. Bd2 Bb7 18. Qa2 {1-0 (48) Stremavicius,T (2532)-Goh,W (2453) Chennai 2022}) 12... Bd6 {[%emt 0:00:14]} 13. a3 {[%emt 0:00:05]} Bf5 {[%emt 0:00:39]} 14. Rc1 {[%emt 0:00:27]} Rd8 {[%emt 0:01:32]} 15. Nc3 {[%emt 0:00:39]} Qg6 $1 {[%emt 0:00:12]} 16. Qf3 {[%emt 0:00:02]} (16. Nxd5 $2 h3 17. g4 Be4 $19) 16... h3 {[%emt 0:00:17]} 17. g3 {[%emt 0:00:24]} (17. Nxd5 $2 Be4 18. Nf4 Bxf4 19. Qxf4 hxg2 20. Bxg2 Qxg2 $19) (17. Qxd5 $2 Bb4 18. Qf3 Bxc3 19. bxc3 (19. Bxc3 $2 Be4 $19) 19... Be4 $19) 17... Bg4 {[%emt 0:00:15]} 18. Qxd5 {[%emt 0:00:02]} O-O {[%emt 0:00:05][%cal Od6g3]} 19. Qb5 {[%emt 0:00:17]} Rfe8 {[%emt 0:04:02]} 20. Be2 {[%emt 0:01:21]} (20. Qxb7 $2 Nxd4 21. Be2 Nxe2 22. Nxe2 Qd3 $19) 20... Nxd4 $1 {[%emt 0:02:47]} 21. exd4 {[%emt 0:00:03] Strongly threatening Be3.} Rxe2+ {[%emt 0:01:18]} 22. Nxe2 {[%emt 0:00:00]} Qe4 {[%emt 0:00:04]} 23. Bg5 {[%emt 0:01:56]} Re8 $1 $17 {[%emt 0:01:51][%cal Rg4e2]} 24. Be3 {[%emt 0:01:13] Kd2 is the strong threat.} a6 $1 {[%emt 0:00:35]} 25. Qa4 {[%emt 0:00:09] And now Kd2 would win.} b5 $1 {[%emt 0:01:09] Black is more active.} (25... Qxh1+ $6 26. Kd2 Qe4 27. Nc3 $11) 26. Qxa6 {[%emt 0:00:01]} Qxh1+ {[%emt 0:01:01]} ({Black should try} 26... Qf3 $1 $17 {[%csl Gg4][%cal Rf3e2]} 27. Qxb5 Rxe3 28. fxe3 Qxh1+ 29. Kd2 Qxh2) 27. Kd2 $11 {[%emt 0:00:02]} Qf3 {[%emt 0:00:04]} 28. Re1 {[%emt 0:02:06]} (28. Qxb5 $2 Rb8 29. Qc4 Qxe2+ 30. Qxe2 Rxb2+ 31. Rc2 Rxc2+ 32. Kxc2 Bxe2 $19) 28... Qf6 {[%emt 0:00:40]} ({Better is} 28... Bc7 $11 29. Nc3 (29. Qxb5 $2 Rb8 $19) 29... Rb8) 29. Nc3 $14 {[%emt 0:00:18]} (29. Qxb5 $2 Rb8 30. Qg5 Rxb2+ 31. Kc3 Qxg5 32. Bxg5 Rxe2 33. Rxe2 Bxe2 $19) 29... Qe6 {[%emt 0:00:45]} (29... Rb8 $14) 30. Qc6 $16 {[%emt 0:01:20]} ({Worse is} 30. Qxb5 Rb8 31. Qa4 Rxb2+ 32. Kc1 Rb3 $19) 30... Rc8 {[%emt 0:00:44] [#]} 31. Qd5 {[%emt 0:00:16]} ({Avoid the trap} 31. Qxb5 $2 Rb8 32. Qa4 Rxb2+ 33. Kc1 Rb3 $17) 31... b4 {[%emt 0:00:05]} 32. axb4 {[%emt 0:00:02][%cal Ba3b4,Bb4b5,Bb5b6][%mdl 32]} Qf6 {[%emt 0:00:05] [#]} (32... Bxb4 $16 33. Qxe6 Bxe6) 33. b5 $1 $18 {[%emt 0:00:32] Black must now prevent Ra1.} Bb4 {[%emt 0:00:33]} 34. Ra1 {[%emt 0:00:17]} Bf3 {[%emt 0:00:49]} (34... Be6 {is a better defense.} 35. Qe4 Qd8) 35. Qb3 {[%emt 0:00:03]} Bf8 {[%emt 0:00:18]} (35... Qe7 $142 36. Ra4 Bd6) 36. b6 {[%emt 0:00:09]} Bb7 {[%emt 0:00:27]} 37. d5 {[%emt 0:00:18] Threatens to win with Ra7.} Bc5 {[%emt 0:00:07]} (37... Rd8 {keeps fighting.} 38. Ra7 Qc6) 38. Re1 $2 {[%emt 0:00:33]} (38. Ra7 Bxe3+ 39. fxe3) 38... Bxe3+ {[%emt 0:00:21]} 39. fxe3 {[%emt 0:00:00]} Ba6 {[%emt 0:00:04][%cal Bb7a6,Ba6c4,Bc4b3][%mdl 32]} 40. Qc2 {[%emt 0:01:30]} (40. Rd1 $16) 40... Qxb6 $11 {[%emt 0:00:05]} 41. Kc1 {[%emt 0:00:49]} Bc4 {[%emt 0:00:02][%cal Oc4d5]} 42. Rd1 $2 {[%emt 0:00:49]} (42. Qe4 $11) 42... Bb3 $19 {[%emt 0:00:13][%mdl 1024] Black has strong compensation.} 43. Qf2 {[%emt 0:00:53]} (43. Qe2 Bxd1 44. Kxd1) 43... Qa5 {[%emt 0:00:32]} 44. Kd2 {[%emt 0:01:04]} Rxc3 {[%emt 0:00:07][%mdl 64] Remove Defender.  Weighted Error Value: White=0.44/Black=0.20 (precise)} 0-1

[Event "FTX Crypto Cup MCCT 2022"]
[Site "Miami"]
[Date "2022.08.11"]
[Round "4.4"]
[White "Duda, Jan-Krzysztof"]
[Black "Firouzja, Alireza"]
[Result "1/2-1/2"]
[ECO "A18"]
[WhiteElo "2750"]
[BlackElo "2793"]
[Annotator "TA"]
[PlyCount "129"]
[EventDate "2022.08.10"]
[EventType "tourn"]
[EventCountry "USA"]
[SourceTitle "playchess.com"]
[Source "ChessBase"]
[SourceQuality "1"]
[TimeControl "900+10"]

{[%evp 10,129,21,10,13,0,0,0,0,0,8,16,20,18,12,18,25,27,27,16,30,22,24,20,16,16,16,20,11,16,20,0,0,0,0,0,6,0,0,0,0,-47,-54,-67,-62,-62,-39,-59,-37,-50,-8,-7,-8,-9,0,-106,-109,-116,-102,-101,0,0,0,0,0,0,59,8,192,0,275,259,229,0,0,0,0,0,0,0,0,-118,-105,-105,-58,-105,-105,-173,-201,-341,-298,-721,-546,-565,-468,-864,-864,-764,-464,-471,-452,-435,-300,-289,-287,-277,-217,-208,0,0,0,0,0,0,0,0,8,8,8,8,8,0]} 1. c4 {[%emt 0:00:00]} Nf6 {[%emt 0:00:00]} 2. Nc3 {[%emt 0:00:07]} e6 {[%emt 0:00:24]} 3. e4 {[%emt 0:00:06]} d5 {[%emt 0:00:01]} 4. cxd5 {[%emt 0:00:06]} exd5 {[%emt 0:00:01]} 5. e5 {[%emt 0:00:00]} Ne4 {[%emt 0:00:01]} 6. Nf3 {[%emt 0:00:01]} Bf5 {[%emt 0:00:09] 6...Bf5 scores better than 6...Nc6. A18: English Opening: Flohr-Mikenas System (1 c4 Nf6 2 Nc3 e6 3 e4).} 7. d3 {[%emt 0:00:02]} Nxc3 {[%emt 0:00:02]} 8. bxc3 {[%emt 0:00:00]} c5 {[%emt 0:00:07]} 9. d4 {[%emt 0:00:05]} Qa5 {[%emt 0:00:01]} 10. Bd2 {[%emt 0:00:06]} Nc6 {[%emt 0:00:02]} 11. c4 {[%emt 0:00:27]} Qd8 {[%emt 0:00:03]} 12. Qb3 {[%emt 0:00:02][%csl LRb7,LRd5]} Be6 {[%emt 0:00:08]} 13. Qxb7 {[%emt 0:00:05]} Rc8 {[%emt 0:00:04]} 14. Ng5 {[%emt 0:00:50]} Nxd4 {[%emt 0:00:04]} 15. Nxe6 {[%emt 0:00:02]} fxe6 {[%emt 0:00:01]} 16. Bd3 {[%emt 0:00:37] [#]} Rb8 $146 {[%emt 0:02:21]} ({Predecessor:} 16... Be7 17. O-O O-O 18. Qb1 Kh8 19. Qd1 Rb8 20. Qh5 Nf5 21. Rad1 g6 22. Qh3 Qd7 {½-½ (77) Tabatabaei,M (2612)-Engel,L (2490) Karlsruhe 2019}) 17. Qa6 {[%emt 0:00:10]} Qb6 {[%emt 0:00:28]} 18. Qxb6 {[%emt 0:02:32]} Rxb6 {[%emt 0:00:18]} 19. O-O {[%emt 0:00:07]} Be7 {[%emt 0:00:25]} 20. Bc3 {[%emt 0:01:12]} Nc6 $1 {[%emt 0:00:27][%cal Bd4c6,Bc6b4,Bb4c2,Bc2e3,Be3f1][%mdl 32]} 21. f4 $1 {[%emt 0:00:03]} O-O {[%emt 0:00:08]} 22. g3 {[%emt 0:00:36]} Nb4 {[%emt 0:01:06]} 23. Be2 {[%emt 0:01:16]} Nc2 {[%emt 0:00:05]} 24. Rac1 {[%emt 0:00:28]} Ne3 {[%emt 0:00:14][%csl LRc4,LRf1]} 25. cxd5 {[%emt 0:00:19]} Nxf1 $15 {[%emt 0:00:36]} 26. d6 {[%emt 0:00:02] [#]} Ne3 $1 {[%emt 0:04:03] White must now prevent ...Bd8.} 27. dxe7 {[%emt 0:00:03]} Re8 {[%emt 0:00:01]} 28. Kf2 {[%emt 0:00:47]} Nf5 {[%emt 0:00:06]} 29. Bc4 {[%emt 0:00:30]} Rxe7 {[%emt 0:00:08]} 30. g4 {[%emt 0:00:33]} Nd4 {[%emt 0:00:01]} 31. f5 $1 {[%emt 0:00:17]} Kf8 {[%emt 0:00:20]} 32. f6 {[%emt 0:00:25]} (32. Bxd4 $11 cxd4 33. Bxe6) 32... Rd7 $17 {[%emt 0:00:10]} 33. g5 {[%emt 0:02:26]} Kf7 {[%emt 0:00:32]} 34. h4 {[%emt 0:00:16]} Nf5 {[%emt 0:02:51]} (34... Nb5 $17 35. Ba5 Rb8) 35. h5 $11 {[%emt 0:00:21]} g6 {[%emt 0:00:34]} 36. hxg6+ {[%emt 0:00:41]} Kxg6 {[%emt 0:00:06]} 37. a4 {[%emt 0:00:02]} Kxg5 {[%emt 0:01:22]} (37... Nd4 $11) 38. a5 {[%emt 0:00:10]} (38. f7 $1 $14 Rxf7 39. Bd2+ Kh5 40. Be2+ Kg6 41. Rg1+ Ng3+ 42. Kxg3) 38... Rc6 $2 {[%emt 0:00:30] [#]} (38... Rb8 $1 $11) 39. Kf3 $2 {[%emt 0:02:41]} (39. f7 $1 $18 {[%cal Rf7f8]} Rxf7 40. Bd2+ Kh5 41. Be2+ Kg6 42. Rg1+ Ng3+ 43. Kxg3) 39... Nd4+ $2 {[%emt 0:00:03][%mdl 8192]} (39... Kg6 $11 {and Black has nothing to worry.}) 40. Ke4 $18 {[%emt 0:00:03]} h5 {[%emt 0:00:08]} 41. Bd2+ $2 {[%emt 0:01:09] A strong pair of Bishops.} ({White must play} 41. Rg1+ $18 Kh6 42. Rg8) 41... Kg6 $1 $11 {[%emt 0:00:01]} 42. Rg1+ {[%emt 0:00:00]} Kh7 {[%emt 0:00:10]} 43. Rg5 {[%emt 0:00:11]} Kh8 {[%emt 0:00:22]} 44. Rxh5+ {[%emt 0:02:06]} Rh7 {[%emt 0:00:04]} 45. Rg5 {[%emt 0:00:19]} (45. Rxh7+ $11 Kxh7 46. Bc3) 45... Rc8 {[%emt 0:00:43]} 46. Rg4 {[%emt 0:00:00] Prevents Rh4.} Rg8 {[%emt 0:00:24]} 47. Rf4 {[%emt 0:00:01]} (47. Bg5 $1 $15) 47... Rd8 $17 {[%emt 0:00:07] aiming for ...Kg8.} 48. Be3 {[%emt 0:00:11]} (48. Bc1 $17) 48... Kg8 $19 {[%emt 0:00:06]} 49. Rf1 {[%emt 0:00:17]} (49. Bf2 $142) 49... Rh4+ {[%emt 0:00:29]} 50. Bf4 $2 {[%emt 0:00:01]} (50. Rf4 Rxf4+ 51. Kxf4) 50... Kf8 {[%emt 0:00:08] Hoping for ...Nf5.} 51. Rf2 {[%emt 0:00:22]} Rb8 {[%emt 0:00:26]} 52. Bf1 {[%emt 0:00:13]} (52. Rh2 $142 Rxh2 53. Bxh2) 52... Rb4 {[%emt 0:00:14]} 53. Kd3 {[%emt 0:00:02]} Nc6 {[%emt 0:00:20]} 54. Be3 {[%emt 0:00:02]} Rb3+ {[%emt 0:00:23]} ({Don't blunder} 54... Nxe5+ $2 55. Kc2 Kf7 56. Bd2 $19) 55. Kd2 {[%emt 0:00:01]} Nxe5 {[%emt 0:00:22][%cal Ob3e3] Strongly threatening ...Rxe3!} 56. Bxc5+ {[%emt 0:00:03]} Kf7 {[%emt 0:00:00] ...Rb2+ is the strong threat.} 57. Bxa7 {[%emt 0:00:37]} Nc6 {[%emt 0:00:20]} 58. Bb6 {[%emt 0:00:07]} Nxa5 $2 {[%emt 0:00:04]} 59. Bxa5 $11 {[%emt 0:00:06] The position is equal.} Rb2+ {[%emt 0:00:02]} (59... Ra4 $5 60. Kc2 Rxa5 61. Kxb3 Rf5 62. Rxf5 exf5 $11) 60. Ke1 $1 {[%emt 0:00:02]} Rxf2 {[%emt 0:00:00]} 61. Kxf2 {[%emt 0:00:00]} Rf4+ {[%emt 0:00:01]} 62. Ke2 {[%emt 0:00:01]} Rxf1 {[%emt 0:00:00]} 63. Kxf1 {[%emt 0:00:00] Intending Bc3 and mate.} Kxf6 {[%emt 0:00:01]} 64. Bc3+ {[%emt 0:00:02]} e5 {[%emt 0:00:01]} 65. Bxe5+ {[%emt 0:00:00] White used his chance.  Weighted Error Value: White=0.40/Black=0.35} 1/2-1/2

[Event "FTX Crypto Cup MCCT 2022"]
[Site "Miami"]
[Date "2022.08.11"]
[Round "4.4"]
[White "Le, Quang Liem"]
[Black "Carlsen, Magnus"]
[Result "0-1"]
[ECO "D30"]
[WhiteElo "2722"]
[BlackElo "2864"]
[Annotator "TA"]
[PlyCount "74"]
[EventDate "2022.08.10"]
[EventType "tourn"]
[EventCountry "USA"]
[SourceTitle "playchess.com"]
[Source "ChessBase"]
[SourceQuality "1"]
[TimeControl "900+10"]

{[%evp 14,74,12,6,8,18,10,19,19,22,25,21,22,20,14,15,18,16,39,0,0,0,0,0,3,2,6,6,9,0,22,0,0,14,10,0,0,-288,-302,-307,-255,-297,-287,-668,-668,-650,-656,-656,-656,-639,-423,-754,-755,-742,-702,-1006,-999,-916,-909,-979,-977,-949,-739]} 1. d4 {[%emt 0:00:00]} d5 {[%emt 0:00:00]} 2. c4 {[%emt 0:00:02]} c6 {[%emt 0:00:06]} 3. Nf3 {[%emt 0:00:05]} e6 {[%emt 0:00:04]} 4. Qc2 {[%emt 0:00:28]} Nf6 {[%emt 0:00:08]} 5. g3 {[%emt 0:00:15]} dxc4 {[%emt 0:00:12]} 6. Qxc4 {[%emt 0:00:14]} b5 {[%emt 0:00:03]} 7. Qb3 {[%emt 0:00:22]} Bb7 {[%emt 0:00:10]} 8. Bg2 {[%emt 0:00:02]} a6 {[%emt 0:00:11] D30: Queen's Gambit Declined: Systems without Nc3.} 9. Be3 {[%emt 0:00:37]} Nbd7 {[%emt 0:00:46] [#]} 10. a4 $146 {[%emt 0:00:09]} ({Predecessor:} 10. Ne5 Nxe5 11. dxe5 Nd7 12. O-O Be7 13. Nc3 Nxe5 14. Ne4 O-O 15. Nc5 Qc7 16. Rac1 Bxc5 17. Bxc5 Rfd8 {½-½ (17) Antic,D (2463)-Ivanov,T (2327) Belgrade 2019}) 10... c5 {[%emt 0:02:16] The position is equal.} 11. axb5 {[%emt 0:00:04]} Bd5 {[%emt 0:00:21]} 12. Qc2 {[%emt 0:00:26]} cxd4 {[%emt 0:00:22]} 13. Bxd4 {[%emt 0:00:02]} axb5 {[%emt 0:00:06]} 14. Rxa8 {[%emt 0:00:02]} Qxa8 {[%emt 0:00:11]} 15. O-O {[%emt 0:00:27]} Be7 {[%emt 0:00:35]} 16. Nc3 {[%emt 0:00:59]} Bc6 $1 {[%emt 0:00:02]} 17. Nh4 {[%emt 0:01:28]} Bxg2 {[%emt 0:00:11]} 18. Nxg2 {[%emt 0:00:00]} b4 {[%emt 0:00:05]} 19. Nb5 {[%emt 0:00:07]} O-O {[%emt 0:00:02] ...Qa6 is the strong threat.} 20. Rc1 {[%emt 0:00:02]} h6 {[%emt 0:05:04]} 21. Na7 {[%emt 0:00:50]} Bd6 {[%emt 0:00:19]} 22. Nc6 {[%emt 0:00:53]} e5 {[%emt 0:02:51]} 23. Be3 {[%emt 0:00:07]} Nd5 {[%emt 0:00:01]} 24. Qf5 {[%emt 0:01:36]} N7f6 {[%emt 0:00:17] Threatens to win with ...Rc8.} 25. Nxe5 $2 {[%emt 0:00:17][%mdl 8192]} (25. Bxh6 $1 $11 {and White has nothing to worry.} Rc8 {[#]} 26. Nxe5 $1 Rxc1+ 27. Bxc1) 25... Ne7 $19 {[%emt 0:00:14]} 26. Qf4 {[%emt 0:01:39]} Ng6 {[%emt 0:00:02]} 27. Nxg6 {[%emt 0:00:32]} Bxf4 {[%emt 0:00:02]} 28. Ne7+ $2 {[%emt 0:00:27]} (28. N6xf4 Nd5 29. Nxd5 Qxd5 30. Nf4) 28... Kh7 {[%emt 0:00:02] Black is clearly winning.} 29. Nxf4 {[%emt 0:00:00]} Qe4 {[%emt 0:00:01] Against Nf5} 30. Nc8 {[%emt 0:00:44]} Rd8 {[%emt 0:00:16]} 31. Nb6 {[%emt 0:00:18]} b3 {[%emt 0:00:32] White must now prevent ...Ng4.} 32. h3 {[%emt 0:00:18]} (32. Nc4 $142) 32... Rd6 {[%emt 0:01:16]} 33. Kh2 {[%emt 0:02:30]} g5 {[%emt 0:00:17]} 34. Nd3 {[%emt 0:00:46] [#]} Rxb6 $1 {[%emt 0:00:02][%mdl 512]} 35. Bxb6 {[%emt 0:00:00]} Qxe2 {[%emt 0:00:01]} 36. Rc3 {[%emt 0:00:01]} Nd5 {[%emt 0:00:02][%csl LRb6,LRc3]} 37. Rxb3 {[%emt 0:01:10]} Qc2 {[%emt 0:00:11] Weighted Error Value: White=0.56/Black=0.10 (very precise)} 0-1

[Event "FTX Crypto Cup MCCT 2022"]
[Site "Miami"]
[Date "2022.08.11"]
[Round "4.4"]
[White "Niemann, Hans Moke"]
[Black "Giri, Anish"]
[Result "0-1"]
[ECO "B51"]
[WhiteElo "2688"]
[BlackElo "2760"]
[Annotator "TA"]
[PlyCount "100"]
[EventDate "2022.08.10"]
[EventType "tourn"]
[EventCountry "USA"]
[SourceTitle "playchess.com"]
[Source "ChessBase"]
[SourceQuality "1"]
[TimeControl "900+10"]

{[%evp 9,100,10,29,29,18,17,0,0,0,-6,0,2,-2,-4,23,14,39,0,0,0,58,-16,0,0,67,-96,-67,-75,-26,-179,-179,-179,-197,-188,-177,-245,-217,-253,-197,-246,-194,-176,-176,-197,-175,-167,-166,-159,-167,-164,-153,-168,-156,-154,-154,-160,-156,-218,-199,-211,-206,-211,-122,-102,-99,-91,-39,-33,-6,-60,-76,-72,-63,-68,-67,-69,-68,-108,-97,-321,-282,-487,-391,-375,-343,-827,-699,-5089,-4710,-1978,-1891,-1110,-1017]} 1. e4 {[%emt 0:00:00]} c5 {[%emt 0:00:00]} 2. Nf3 {[%emt 0:00:03]} d6 {[%emt 0:00:03]} 3. Bb5+ {[%emt 0:00:17]} Nd7 {[%emt 0:00:01]} 4. O-O {[%emt 0:00:02]} a6 {[%emt 0:00:01]} 5. Bd3 {[%emt 0:00:02]} Ngf6 {[%emt 0:00:06]} 6. Re1 {[%emt 0:00:01] B51: Sicilian: Moscow Variation (3 Bb5+) without 3...Bd7.} e6 $1 {[%emt 0:00:03] 6...e6 scores better than 6...b5.} 7. Bf1 {[%emt 0:00:01]} b6 {[%emt 0:00:05]} 8. c4 {[%emt 0:00:07] The position is equal.} Bb7 {[%emt 0:00:01]} 9. Nc3 {[%emt 0:00:00]} Ne5 {[%emt 0:00:01]} 10. d4 {[%emt 0:00:01]} Nxf3+ {[%emt 0:00:01]} 11. gxf3 {[%emt 0:00:00][%cal Bg2f3,Bf3f4][%mdl 32] [#]} cxd4 $5 $146 {[%emt 0:00:00][%mdl 8] An interesting novelty.} ({Predecessor:} 11... Be7 12. d5 e5 13. f4 Bc8 14. fxe5 dxe5 15. f4 Bd6 16. Qf3 Qc7 17. f5 Be7 {1-0 (39) Niemann,H (2637)-Yilmaz,M (2626) Havana 2022}) 12. Qxd4 {[%emt 0:00:01]} Nd7 {[%emt 0:00:15]} 13. f4 {[%emt 0:00:19]} Rg8 {[%emt 0:00:31][%cal Og7g5]} 14. Bg2 {[%emt 0:01:46]} Qh4 {[%emt 0:00:38]} (14... Rc8 $11) 15. Qd3 {[%emt 0:00:21]} (15. Re3 $14) 15... g5 {[%emt 0:01:03]} 16. fxg5 {[%emt 0:00:43]} h6 {[%emt 0:00:16]} (16... Nc5 $11 17. Qg3 Qxg3 18. hxg3 Nd3) 17. Qg3 $2 {[%emt 0:00:57]} (17. Re3 $1 $14 {stays ahead.} Nc5 18. Qd4) 17... hxg5 $17 {[%emt 0:00:14]} 18. Be3 {[%emt 0:01:21]} Bg7 {[%emt 0:01:36]} ({Better is} 18... Rc8 $1 $17) 19. Na4 $2 {[%emt 0:04:51]} (19. Qxd6 $11 Be5 20. Qb4) 19... Be5 $19 {[%emt 0:00:59]} (19... Bxe4 20. Qxh4 (20. Bxg5 $2 Qxg3 21. hxg3 Bxg2 $19) (20. Qxg5 $2 Qxg5 21. Bxg5 Bxg2 $19) 20... gxh4 21. Bxe4 $18) 20. Qxh4 {[%emt 0:00:36]} gxh4 {[%emt 0:00:01]} 21. Kf1 {[%emt 0:00:02]} b5 {[%emt 0:00:11][%cal Bb6b5,Bb5b4][%mdl 32]} 22. Nc3 {[%emt 0:00:15]} (22. f4 {was called for.} bxa4 23. fxe5 Nxe5 24. Bf2) 22... b4 {[%emt 0:01:27]} (22... bxc4 23. f4 Bxc3 24. bxc3 $17) 23. Ne2 {[%emt 0:01:11]} Nc5 {[%emt 0:00:50] aiming for ...Nd3.} ({Don't blunder} 23... Bxh2 $2 24. a3 $19) 24. Bd4 {[%emt 0:01:17]} (24. Rad1 {keeps fighting.}) 24... Nxe4 {[%emt 0:01:10]} ({Don't go for} 24... Bxh2 $2 25. f3) 25. Bxe4 {[%emt 0:00:13]} Bxe4 {[%emt 0:00:03]} 26. Nf4 {[%emt 0:00:03] Inhibits Bg2+.} Bxf4 {[%emt 0:02:59]} 27. Rxe4 {[%emt 0:00:03]} e5 {[%emt 0:00:11]} ({Weaker is} 27... Bxh2 28. Ke2 $15) 28. h3 {[%emt 0:00:06]} Kd7 {[%emt 0:00:39] Strongly threatening ...Bh2.} 29. Rd1 {[%emt 0:00:24]} Ke6 {[%emt 0:04:11]} 30. Be3 {[%emt 0:00:21]} f5 {[%emt 0:01:16]} 31. Rxf4 {[%emt 0:00:02]} exf4 {[%emt 0:00:00]} 32. Bxf4 $17 {[%emt 0:00:00][%mdl 4096] Endgame KRR-KRB} Rgd8 {[%emt 0:00:02]} 33. Re1+ {[%emt 0:00:43]} (33. Bg5 $17 {might work better.} Rd7 34. Bxh4) 33... Kf6 $19 {[%emt 0:00:07]} 34. Rd1 {[%emt 0:00:04]} Rac8 {[%emt 0:00:13]} 35. Rd4 {[%emt 0:01:09]} Rc6 {[%emt 0:00:33]} (35... d5 $1 $19 {[%cal Rd5c4]} 36. cxd5 a5) 36. Be3 $17 {[%emt 0:00:31]} Ke6 {[%emt 0:01:00][%cal Ob4b3]} 37. Rxh4 {[%emt 0:00:09]} Rf8 {[%emt 0:00:16]} (37... Rcc8 $17 38. Rh6+ Kd7 39. Rh7+ Kc6) 38. b3 $15 {[%emt 0:00:02]} d5 {[%emt 0:00:09]} 39. c5 {[%emt 0:00:07]} ({White should play} 39. cxd5+ $1 $11 Kxd5 40. Rxb4) 39... f4 $1 {[%emt 0:00:04]} 40. Bd4 {[%emt 0:00:06] [#]} Kf5 $1 {[%emt 0:00:06] ...Ke4 is the strong threat.} 41. f3 {[%emt 0:00:10]} Rg8 {[%emt 0:00:08]} 42. Rh7 {[%emt 0:01:23]} Rg3 {[%emt 0:00:20]} 43. Kf2 {[%emt 0:00:43] [#]} Rcg6 $1 {[%emt 0:00:06] Hoping for ...Rg2+.} 44. Re7 $2 {[%emt 0:00:08]} (44. Rf7+ $17 Ke6 45. Rxf4 Rg2+ 46. Ke3) 44... Rg2+ $19 {[%emt 0:00:20]} (44... Rxh3 $2 45. Re5+ Kf6 46. Rh5+ Ke6 47. Rxh3 $18) 45. Ke1 $2 {[%emt 0:00:01]} (45. Kf1 Rd2 46. Re5+ Kf6 47. Re4+ Kf7 48. Rxf4+ Ke7 49. Bf2) 45... R6g3 {[%emt 0:00:02]} 46. Re5+ {[%emt 0:00:40]} Kg6 {[%emt 0:00:05]} 47. c6 $2 {[%emt 0:00:15]} (47. Re2 Rxe2+ 48. Kxe2) 47... Rxh3 {[%emt 0:00:06] ( -> ...Rh1+). Black is clearly winning.} 48. Re2 {[%emt 0:00:16]} Rh1+ {[%emt 0:00:04]} 49. Kd2 {[%emt 0:00:04]} Rxe2+ {[%emt 0:00:01]} 50. Kxe2 {[%emt 0:00:31]} Rc1 {[%emt 0:00:02] Weighted Error Value: White=0.56/Black=0.16 (very precise)} 0-1